bitfinex/quotes_SOLUSD_20220307
["timestamp","ask_amount","ask_price","bid_price","bid_amount"]
[1646620428499,6.055,82.614,82.53,18.1698]
[1646620428697,6.055,82.616,82.53,18.1698]
[1646620428995,6.57509391,82.615,82.53,18.1698]
[1646620429196,6.055,82.614,82.53,18.1698]
[1646620429399,6.055,82.614,82.521,51.71939548]
[1646620429796,6.055,82.616,82.521,51.71939548]
[1646620429997,51.67829614,82.615,82.521,51.71939548]
[1646620430296,6.055,82.614,82.521,51.71939548]
[1646620431095,6.055,82.616,82.521,51.71939548]
[1646620433301,22.6958,82.617,82.521,51.71939548]
[1646620434601,22.6958,82.617,82.522,0.49399446]
[1646620434901,22.6958,82.617,82.521,51.71939548]
[1646620435804,6.055,82.616,82.521,51.71939548]
[1646620439005,6.055,82.616,82.53,18.1699]
[1646620439207,6.055,82.616,82.531,0.66484639]
[1646620439508,22.6958,82.617,82.531,0.66484639]
[1646620439706,22.6958,82.617,82.53,13.94]
[1646620441108,22.6958,82.617,82.54,18.1678]
[1646620441408,22.6958,82.617,82.541,50.18964665]
[1646620442809,6.054,82.616,82.541,50.18964665]
[1646620443311,6.054,82.616,82.55,18.1649]
[1646620443509,22.6958,82.617,82.55,18.1649]
[1646620444514,6.054,82.637,82.55,62.473174]
[1646620444709,6.054,82.637,82.551,0.49851982]
[1646620444910,6.054,82.637,82.57,18.1616]
[1646620445310,22.9859,82.638,82.571,56.61871598]
[1646620445912,47.69157018,82.638,82.571,56.61871598]
[1646620446513,6.051,82.637,82.571,56.61871598]
[1646620448215,22.9859,82.638,82.571,56.61871598]
[1646620448913,6.051,82.647,82.571,56.61871598]
[1646620449115,24.5755,82.648,82.571,56.61871598]
[1646620450132,24.5755,82.648,82.58,18.1585]
[1646620450332,24.5755,82.648,82.58,13.94]
[1646620450533,6.051,82.647,82.58,13.94]
[1646620450736,43.30516635,82.646,82.58,13.94]
[1646620450935,6.051,82.645,82.58,13.94]
[1646620451134,4.92827678,82.644,82.571,56.61871598]
[1646620451337,12.62512635,82.643,82.571,56.61871598]
[1646620451536,6.57412635,82.642,82.53,13.94]
[1646620451736,86.18,82.64,82.53,13.94]
[1646620451936,3.12747564,82.637,82.53,13.94]
[1646620452138,3.12747564,82.637,82.506,30.368274]
[1646620452139,5.58936116,82.633,82.51,13.94]
[1646620452439,18.1766,82.62,82.51,32.1146]
[1646620452636,43.30516635,82.618,82.511,94.60014473]
[1646620453037,8.89113526,82.617,82.512,30.36758067]
[1646620453437,2.83613526,82.616,82.512,30.36758067]
[1646620453637,6.055,82.615,82.512,30.36758067]
[1646620453838,22.6385,82.614,82.52,18.1722]
[1646620454039,6.055,82.613,82.52,18.1722]
[1646620454240,6.055,82.613,82.52,32.1122]
[1646620454440,8.89113526,82.613,82.52,32.1122]
[1646620455140,1.60306995,82.61,82.52,32.1122]
[1646620455343,7.65806995,82.609,82.52,32.1122]
[1646620455741,6.055,82.609,82.52,62.47978067]
[1646620456141,1.60306995,82.612,82.52,62.47978067]
[1646620456441,1.60306995,82.611,82.52,62.47978067]
[1646620456641,1.60306995,82.611,82.521,120.4]
[1646620456842,22.6385,82.614,82.54,18.1646]
[1646620457644,22.7783,82.619,82.542,0.55618854]
[1646620458043,22.7783,82.619,82.541,53.3717384]
[1646620458843,22.7783,82.619,82.55,18.1655]
[1646620460745,22.7783,82.619,82.55,32.1055]
[1646620466649,7.65706995,82.629,82.55,32.1055]
[1646620466847,7.65706995,82.629,82.551,0.76702352]
[1646620467049,7.65706995,82.629,82.55,32.1055]
[1646620467450,1.60306995,82.629,82.551,6.054]
[1646620467649,1.60306995,82.628,82.551,6.054]
[1646620467852,6.054,82.627,82.544,17.8133]
[1646620468049,1.60306995,82.626,82.544,17.8133]
[1646620468249,1.60306995,82.623,82.544,17.8133]
[1646620468449,1.60306995,82.621,82.544,17.8133]
[1646620468651,6.054,82.62,82.541,53.3717384]
[1646620469153,1.60306995,82.618,82.541,53.3717384]
[1646620469351,6.054,82.617,82.541,53.3717384]
[1646620470152,1.60306995,82.615,82.541,53.3717384]
[1646620470352,6.054,82.614,82.541,53.3717384]
[1646620470553,7.65706995,82.615,82.541,53.3717384]
[1646620470753,6.054,82.615,82.541,53.3717384]
[1646620470952,7.65706995,82.615,82.541,53.3717384]
[1646620471153,1.60306995,82.615,82.542,6.054]
[1646620471455,1.60306995,82.616,82.542,6.054]
[1646620471753,1.60306995,82.615,82.542,6.054]
[1646620473353,1.60306995,82.614,82.542,6.054]
[1646620474854,1.60306995,82.617,82.55,18.1656]
[1646620475056,24.7786,82.628,82.55,18.1656]
[1646620475057,6.054,82.616,82.55,18.1656]
[1646620475254,1.60306995,82.618,82.551,0.69128727]
[1646620475454,26.38166995,82.628,82.551,31.05886794]
[1646620475653,24.7786,82.628,82.551,31.05886794]
[1646620475854,24.7786,82.628,82.57,18.1611]
[1646620476053,24.7786,82.628,82.571,47.28265733]
[1646620476454,1.60306995,82.632,82.571,47.28265733]
[1646620476654,1.60306995,82.633,82.571,47.28265733]
[1646620477053,1.60306995,82.636,82.571,47.28265733]
[1646620477254,1.60306995,82.638,82.571,46.59137006]
[1646620477656,7.65606995,82.64,82.571,46.59137006]
[1646620477854,1.60306995,82.64,82.572,0.5057042]
[1646620478055,23.9039,82.641,82.573,6.052]
[1646620478256,23.9039,82.641,82.572,6.051]
[1646620482460,6.051,82.651,82.572,6.051]
[1646620482664,6.051,82.651,82.58,18.1592]
[1646620484563,6.051,82.651,82.571,46.59137006]
[1646620484763,23.7304,82.652,82.571,46.59137006]
[1646620485367,25.33346995,82.652,82.571,46.59137006]
[1646620485566,6.051,82.651,82.571,46.59137006]
[1646620485765,1.60306995,82.649,82.571,46.59137006]
[1646620486168,5.17978679,82.648,82.571,46.59137006]
[1646620486367,1.60306995,82.647,82.571,46.59137006]
[1646620486566,3.57671684,82.648,82.571,46.59137006]
[1646620486567,1.60306995,82.646,82.571,46.59137006]
[1646620487568,7.65406995,82.647,82.571,46.59137006]
[1646620488370,1.60306995,82.646,82.571,46.59137006]
[1646620488768,1.60306995,82.649,82.572,6.051]
[1646620491272,1.60306995,82.64,82.572,6.051]
[1646620491473,1.60306995,82.639,82.572,6.051]
[1646620491875,1.60306995,82.633,82.572,6.051]
[1646620492076,1.60306995,82.628,82.571,46.59137006]
[1646620492277,1.60306995,82.624,82.571,46.59137006]
[1646620492482,1.60306995,82.623,82.571,46.59137006]
[1646620492881,1.60306995,82.629,82.571,46.59137006]
[1646620494282,1.60306995,82.626,82.571,46.59137006]
[1646620494483,7.41082895,82.625,82.571,46.59137006]
[1646620494683,1.60306995,82.625,82.571,46.59137006]
[1646620494985,1.60306995,82.626,82.571,46.59137006]
[1646620495182,120.4,82.631,82.571,46.59137006]
[1646620495183,1.60306995,82.627,82.571,46.59137006]
[1646620495784,6.053,82.626,82.571,46.59137006]
[1646620496884,1.60306995,82.627,82.571,46.59137006]
[1646620499302,1.60306995,82.63,82.571,46.59137006]
[1646620499500,54.09767396,82.629,82.571,46.59137006]
[1646620499901,1.60306995,82.629,82.571,46.59137006]
[1646620500300,6.053,82.628,82.571,46.59137006]
[1646620501003,7.65606995,82.628,82.571,46.59137006]
[1646620501206,6.053,82.628,82.571,46.59137006]
[1646620501606,7.65606995,82.628,82.571,46.59137006]
[1646620502507,6.053,82.628,82.571,46.59137006]
[1646620503207,7.65606995,82.628,82.571,46.59137006]
[1646620504209,1.60306995,82.626,82.571,46.59137006]
[1646620504408,7.65606995,82.625,82.571,46.59137006]
[1646620504608,1.60306995,82.625,82.571,46.59137006]
[1646620504809,1.60306995,82.631,82.571,46.59137006]
[1646620505011,1.60306995,82.632,82.571,46.59137006]
[1646620505207,23.4768,82.642,82.571,46.59137006]
[1646620505208,1.60306995,82.635,82.571,76.95895073]
[1646620505609,24.53376995,82.637,82.58,18.1588]
[1646620505808,22.9307,82.637,82.58,18.1588]
[1646620506208,23.4768,82.642,82.58,18.1588]
[1646620506808,1.60306995,82.652,82.58,18.1588]
[1646620507008,1.60306995,82.657,82.582,0.51967358]
[1646620507210,1.60306995,82.658,82.6,18.1552]
[1646620507409,1.60306995,82.659,82.6,18.1552]
[1646620507709,1.60306995,82.659,82.601,53.47761005]
[1646620507911,1.60306995,82.66,82.601,53.47761005]
[1646620508514,1.60306995,82.66,82.61,18.1524]
[1646620508710,22.6147,82.666,82.61,18.1524]
[1646620509109,1.60306995,82.686,82.61,18.1524]
[1646620509310,1.60306995,82.687,82.611,0.56515794]
[1646620509511,1.60306995,82.687,82.61,18.1524]
[1646620510011,1.60306995,82.686,82.61,18.1524]
[1646620510412,6.049,82.685,82.61,18.1524]
[1646620510813,1.60306995,82.684,82.61,18.1524]
[1646620511014,6.049,82.683,82.61,18.1524]
[1646620511212,7.65206995,82.685,82.61,18.1524]
[1646620511714,6.049,82.685,82.61,18.1524]
[1646620511912,6.049,82.686,82.601,53.47761005]
[1646620512113,1.60306995,82.683,82.601,53.47761005]
[1646620512317,1.60306995,82.678,82.601,53.47761005]
[1646620512614,6.05,82.677,82.601,53.47761005]
[1646620512813,7.65306995,82.677,82.601,53.47761005]
[1646620513015,25.38396995,82.676,82.61,18.1522]
[1646620513214,23.7809,82.676,82.61,18.1522]
[1646620515719,23.7809,82.676,82.601,53.47761005]
[1646620516318,25.38396995,82.676,82.601,53.47761005]
[1646620516718,1.60306995,82.675,82.601,53.47761005]
[1646620516921,23.7809,82.676,82.601,53.47761005]
[1646620517118,6.05,82.675,82.601,53.47761005]
[1646620517319,23.7809,82.676,82.601,53.47761005]
[1646620517920,23.7809,82.676,82.602,30.364114]
[1646620518122,22.6147,82.689,82.603,120.4]
[1646620518321,22.6147,82.689,82.611,120.9780411]
[1646620518623,1.60306995,82.701,82.62,13.94]
[1646620519022,1.60306995,82.702,82.621,46.21974589]
[1646620519720,1.60306995,82.704,82.63,18.1479]
[1646620520121,7.65106995,82.703,82.621,46.21974589]
[1646620520320,1.60306995,82.7,82.621,46.21974589]
[1646620520524,120.4,82.698,82.621,46.21974589]
[1646620520722,6.048,82.697,82.621,46.21974589]
[1646620521129,25.54603526,82.696,82.621,46.21974589]
[1646620521324,126.448,82.695,82.621,46.21974589]
[1646620521523,1.60306995,82.694,82.621,46.21974589]
[1646620521723,1.60306995,82.688,82.621,46.21974589]
[1646620522023,6.72276132,82.687,82.621,46.21974589]
[1646620522224,1.60306995,82.685,82.621,46.21974589]
[1646620522423,6.049,82.684,82.621,46.21974589]
[1646620522623,6.049,82.686,82.621,46.21974589]
[1646620523224,7.65206995,82.686,82.621,46.21974589]
[1646620523524,1.60306995,82.685,82.621,46.21974589]
[1646620523730,6.049,82.684,82.621,46.21974589]
[1646620523924,7.65206995,82.685,82.621,46.21974589]
[1646620525425,6.049,82.685,82.621,46.21974589]
[1646620526029,7.65206995,82.685,82.621,46.21974589]
[1646620526230,6.049,82.685,82.621,46.21974589]
[1646620526428,1.60306995,82.685,82.621,46.21974589]
[1646620526829,1.60306995,82.684,82.621,46.21974589]
[1646620527030,1.60306995,82.684,82.621,46.18520912]
[1646620527229,1.60306995,82.685,82.621,46.18520912]
[1646620527428,24.2325,82.686,82.621,46.18520912]
[1646620527429,1.60306995,82.684,82.621,46.18520912]
[1646620528432,1.60306995,82.68,82.621,46.18520912]
[1646620528935,1.60306995,82.681,82.621,46.18520912]
[1646620529130,1.60306995,82.68,82.621,46.18520912]
[1646620529530,1.60306995,82.679,82.621,46.18520912]
[1646620529731,7.65206995,82.678,82.621,46.18520912]
[1646620530131,1.60306995,82.675,82.621,46.18520912]
[1646620530333,1.60306995,82.668,82.58,13.94]
[1646620530531,122.00306995,82.666,82.57,13.94]
[1646620530730,1.60306995,82.657,82.57,13.94]
[1646620530930,1.60306995,82.654,82.57,13.94]
[1646620531131,120.4,82.652,82.57,13.94]
[1646620531331,120.4,82.65,82.574,53.34652064]
[1646620531537,1.60306995,82.642,82.574,53.34652064]
[1646620531729,1.60306995,82.641,82.574,53.34652064]
[1646620532532,53.42825438,82.651,82.574,53.34652064]
[1646620532533,1.60306995,82.644,82.574,53.34652064]
[1646620533133,1.60306995,82.643,82.574,53.34652064]
[1646620533333,1.60306995,82.644,82.574,53.34652064]
[1646620534234,1.60306995,82.643,82.574,53.34652064]
[1646620534434,1.60306995,82.644,82.574,53.34652064]
[1646620534634,1.60306995,82.643,82.574,53.34652064]
[1646620535035,1.60306995,82.642,82.574,53.34652064]
[1646620535637,1.60306995,82.644,82.574,53.34652064]
[1646620536237,7.65406995,82.643,82.574,53.34652064]
[1646620536640,122.00306995,82.641,82.574,53.34652064]
[1646620536837,3.72222166,82.638,82.574,53.34652064]
[1646620537037,120.4,82.636,82.574,53.34652064]
[1646620537239,120.4,82.634,82.574,53.34652064]
[1646620537538,120.4,82.632,82.574,53.34652064]
[1646620537738,6.053,82.631,82.574,53.34652064]
[1646620537940,6.053,82.637,82.574,53.34652064]
[1646620538138,120.4,82.636,82.574,53.34652064]
[1646620538339,1.60306995,82.632,82.574,53.34652064]
[1646620538539,120.4,82.63,82.574,53.34652064]
[1646620538739,120.4,82.628,82.574,53.34652064]
[1646620538940,120.4,82.626,82.574,53.34652064]
[1646620539143,120.4,82.624,82.574,53.34652064]
[1646620539342,120.4,82.622,82.574,53.34652064]
[1646620539540,6.053,82.621,82.574,53.34652064]
[1646620539741,120.4,82.62,82.574,53.34652064]
[1646620539970,120.4,82.618,82.574,53.34652064]
[1646620540162,120.4,82.616,82.53,18.17]
[1646620540363,24.8259,82.615,82.53,32.11]
[1646620540562,120.4,82.614,82.53,18.17]
[1646620540962,120.4,82.612,82.529,12.65022994]
[1646620541162,120.4,82.608,82.557,61.78377012]
[1646620541365,40.39594252,82.609,82.557,61.78377012]
[1646620541366,120.4,82.606,82.557,61.78377012]
[1646620542262,6.054,82.605,82.516,23.528]
[1646620542462,126.454,82.609,82.516,23.528]
[1646620542662,6.054,82.609,82.516,23.528]
[1646620542862,23.7738,82.611,82.516,23.528]
[1646620542863,6.056,82.61,82.516,23.528]
[1646620543062,6.056,82.61,82.517,25.81064733]
[1646620543264,6.056,82.61,82.518,50.482319]
[1646620543562,6.056,82.61,82.519,25.81064733]
[1646620543965,6.056,82.61,82.52,13.94]
[1646620544169,23.7738,82.611,82.53,18.1707]
[1646620544566,23.7738,82.611,82.531,0.52633004]
[1646620544965,23.7738,82.611,82.531,64.04160591]
[1646620545166,23.7738,82.611,82.531,63.51527587]
[1646620545368,23.7738,82.611,82.54,18.1679]
[1646620546067,23.7738,82.611,82.541,0.54923377]
[1646620546468,23.7738,82.611,82.54,18.1679]
[1646620547669,120.4,82.61,82.54,18.1679]
[1646620547869,23.7738,82.611,82.54,18.1679]
[1646620549471,6.055,82.61,82.54,18.1679]
[1646620550779,120.4,82.609,82.54,18.1679]
[1646620551171,6.055,82.61,82.54,18.1679]
[1646620551372,23.7738,82.611,82.54,18.1679]
[1646620553374,53.9997,82.638,82.541,28.97298588]
[1646620553575,53.9997,82.638,82.55,18.1647]
[1646620553774,53.9997,82.638,82.551,0.59479738]
[1646620553974,53.9997,82.638,82.551,49.37481628]
[1646620554375,53.9997,82.638,82.551,48.7800189]
[1646620554576,53.9997,82.638,82.568,0.82006278]
[1646620554775,53.9997,82.638,82.569,61.61845386]
[1646620555275,53.17963722,82.638,82.569,61.61845386]
[1646620559576,1.60306995,82.634,82.569,61.61845386]
[1646620559777,120.4,82.632,82.569,61.61845386]
[1646620560177,134.34,82.63,82.569,61.61845386]
[1646620560378,1.60306995,82.623,82.569,61.61845386]
[1646620560576,120.4,82.621,82.569,61.61845386]
[1646620560776,120.4,82.619,82.569,61.61845386]
[1646620560976,6.053,82.618,82.569,61.61845386]
[1646620562375,6.053,82.623,82.569,61.61845386]
[1646620562877,1.60306995,82.634,82.569,61.61845386]
[1646620563077,1.60306995,82.635,82.569,61.61845386]
[1646620563777,1.60306995,82.636,82.569,61.61845386]
[1646620564076,1.60306995,82.637,82.569,61.61845386]
[1646620564679,1.60306995,82.64,82.569,61.61845386]
[1646620566778,1.60306995,82.642,82.569,61.61845386]
[1646620568578,6.053,82.637,82.569,61.61845386]
[1646620568980,6.053,82.644,82.569,61.61845386]
[1646620569180,6.053,82.645,82.569,61.61845386]
[1646620569780,6.053,82.646,82.571,0.88019655]
[1646620569980,1.60306995,82.657,82.571,0.88019655]
[1646620570181,6.051,82.656,82.573,121.28019655]
[1646620570582,47.6415,82.666,82.575,121.28019655]
[1646620570783,47.6415,82.666,82.581,0.88019655]
[1646620570984,47.6415,82.666,82.582,58.38351132]
[1646620571183,47.6415,82.666,82.59,18.1563]
[1646620572387,47.6415,82.666,82.591,0.50449764]
[1646620572785,47.6415,82.666,82.59,18.1563]
[1646620573792,47.6415,82.666,82.591,0.54482701]
[1646620573992,47.6415,82.666,82.6,18.1541]
[1646620574192,47.6415,82.666,82.601,0.54482701]
[1646620574394,47.6415,82.666,82.6,18.1541]
[1646620574593,47.6415,82.666,82.601,62.83687461]
[1646620574993,6.05,82.665,82.601,62.83687461]
[1646620578397,120.4,82.664,82.601,62.83687461]
[1646620578597,47.6415,82.666,82.601,62.83687461]
[1646620578799,2.83613526,82.664,82.601,62.83687461]
[1646620579001,120.4,82.663,82.601,62.83687461]
[1646620579398,120.4,82.661,82.601,62.83687461]
[1646620579797,2.83613526,82.66,82.601,62.83687461]
[1646620579996,120.4,82.658,82.601,62.83687461]
[1646620580199,120.4,82.656,82.601,62.83687461]
[1646620580399,120.4,82.654,82.601,62.83687461]
[1646620580600,120.4,82.652,82.601,62.83687461]
[1646620580999,120.4,82.65,82.601,62.83687461]
[1646620581300,126.451,82.649,82.601,62.83687461]
[1646620582500,126.451,82.649,82.573,24.8681]
[1646620582702,120.4,82.647,82.523,3.06319887]
[1646620582902,4.16953221,82.644,82.542,28.06398067]
[1646620583103,120.4,82.639,82.527,48.8218]
[1646620583408,1.60306995,82.635,82.527,48.8218]
[1646620583602,120.4,82.637,82.528,87.02330458]
[1646620583603,120.4,82.633,82.528,87.02330458]
[1646620583803,120.4,82.631,82.53,18.1699]
[1646620584001,120.4,82.629,82.53,18.1699]
[1646620584202,6.054,82.628,82.531,28.06398067]
[1646620584603,120.4,82.629,82.531,28.06398067]
[1646620585003,120.4,82.627,82.531,28.06398067]
[1646620585204,120.4,82.625,82.531,28.06398067]
[1646620585406,120.4,82.623,82.531,28.06398067]
[1646620585603,120.4,82.619,82.531,28.06398067]
[1646620585815,120.4,82.617,82.531,28.06398067]
[1646620586010,124.66045115,82.615,82.528,58.95932391]
[1646620586204,120.4,82.609,82.528,58.95932391]
[1646620586405,120.4,82.605,82.528,58.95932391]
[1646620586604,120.4,82.603,82.528,58.95932391]
[1646620586806,120.4,82.601,82.528,58.95932391]
[1646620587004,120.4,82.599,82.528,58.95932391]
[1646620587205,19.995,82.6,82.528,58.95932391]
[1646620587206,120.4,82.597,82.528,58.95932391]
[1646620587407,120.4,82.595,82.528,58.95932391]
[1646620587605,120.4,82.591,82.528,58.95932391]
[1646620587807,78.09628704,82.588,82.484,22.8326]
[1646620588011,191.02822502,82.585,82.484,22.8326]
[1646620588207,5.33207944,82.578,82.484,22.8326]
[1646620588409,118.78822502,82.576,82.484,22.8326]
[1646620588636,118.78822502,82.574,82.484,22.8326]
[1646620588828,118.78822502,82.569,82.485,47.24926345]
[1646620589126,118.78822502,82.567,82.485,47.24926345]
[1646620589327,6.058,82.566,82.485,47.24926345]
[1646620589727,23.644,82.565,82.485,47.24926345]
[1646620589927,6.058,82.564,82.485,47.24926345]
[1646620590629,6.058,82.564,82.485,71.76164412]
[1646620591232,23.644,82.565,82.49,18.1801]
[1646620592034,23.644,82.565,82.485,71.76164412]
[1646620592233,129.29413526,82.564,82.485,47.24926345]
[1646620592633,120.4,82.559,82.485,47.24926345]
[1646620592833,120.4,82.555,82.438,47.5664]
[1646620593032,120.4,82.553,82.438,47.5664]
[1646620593233,72.24,82.555,82.438,47.5664]
[1646620593234,120.4,82.549,82.438,47.5664]
[1646620593433,4.54678525,82.544,82.438,47.5664]
[1646620593634,120.4,82.539,82.438,47.5664]
[1646620593835,120.4,82.537,82.461,47.22322483]
[1646620594032,120.4,82.535,82.461,47.22322483]
[1646620594234,120.4,82.533,82.461,47.22322483]
[1646620594733,120.4,82.531,82.461,47.22322483]
[1646620594936,120.4,82.529,82.429,46.76656605]
[1646620595134,6.059,82.53,82.43,23.4689]
[1646620595135,120.4,82.527,82.43,23.4689]
[1646620595334,4.90956704,82.524,82.43,23.4689]
[1646620595536,120.4,82.519,82.43,23.4689]
[1646620595734,18.1977,82.52,82.43,23.4689]
[1646620595735,120.4,82.517,82.43,23.4689]
[1646620595934,120.4,82.513,82.431,46.03651306]
[1646620596135,120.4,82.511,82.431,46.03651306]
[1646620596336,120.4,82.509,82.431,46.03651306]
[1646620596536,120.4,82.507,82.431,46.03651306]
[1646620596738,120.4,82.505,82.431,46.03651306]
[1646620596937,120.4,82.503,82.431,46.03651306]
[1646620597135,6.063,82.502,82.431,46.03651306]
[1646620597335,120.4,82.499,82.431,46.03651306]
[1646620598135,40.20325963,82.5,82.431,46.03651306]
[1646620599936,6.063,82.499,82.431,46.03651306]
[1646620600538,126.463,82.499,82.431,46.03651306]
[1646620600939,6.063,82.499,82.431,46.03651306]
[1646620601244,23.183,82.504,82.431,69.11098074]
[1646620601640,23.183,82.504,82.432,23.69209837]
[1646620602140,120.4,82.502,82.431,46.03651306]
[1646620602340,120.4,82.5,82.431,46.03651306]
[1646620602542,120.4,82.498,82.391,24.8637]
[1646620602746,120.4,82.496,82.391,24.8637]
[1646620602941,120.4,82.494,82.391,24.8637]
[1646620603140,120.4,82.492,82.391,24.8637]
[1646620603340,120.4,82.49,82.391,24.8637]
[1646620603542,120.4,82.488,82.413,53.85958836]
[1646620603843,120.4,82.486,82.413,53.85958836]
[1646620604045,120.4,82.484,82.413,53.85958836]
[1646620604244,120.4,82.482,82.413,53.85958836]
[1646620604443,120.4,82.48,82.413,53.85958836]
[1646620604745,126.464,82.479,82.413,53.85958836]
[1646620605145,6.064,82.479,82.413,53.85958836]
[1646620605344,24.5268,82.478,82.413,53.85958836]
[1646620605548,6.064,82.477,82.413,53.85958836]
[1646620605744,24.5268,82.478,82.413,53.85958836]
[1646620606243,24.5268,82.478,82.42,18.197]
[1646620606443,6.064,82.509,82.42,18.197]
[1646620606646,24.5268,82.508,82.42,18.197]
[1646620606843,6.063,82.507,82.42,18.197]
[1646620607646,6.063,82.507,82.421,120.4]
[1646620607847,28.7201,82.526,82.44,18.1867]
[1646620608047,28.7201,82.526,82.441,0.63105193]
[1646620608446,28.7201,82.526,82.434,47.26839216]
[1646620608647,22.6571,82.526,82.435,120.4]
[1646620608847,22.6571,82.526,82.44,13.94]
[1646620609249,22.6571,82.526,82.46,18.1876]
[1646620609446,22.6571,82.526,82.461,46.32693765]
[1646620610848,22.6571,82.526,82.46,18.1876]
[1646620611048,6.061,82.525,82.432,22.6937]
[1646620611251,120.4,82.524,82.432,22.6937]
[1646620611451,120.4,82.522,82.432,22.6937]
[1646620611648,120.4,82.52,82.432,22.6937]
[1646620611851,120.4,82.518,82.423,50.88899261]
[1646620612150,120.4,82.516,82.424,6.062]
[1646620612347,120.4,82.514,82.423,50.88899261]
[1646620612549,120.4,82.512,82.423,50.88899261]
[1646620612750,120.4,82.51,82.423,50.88899261]
[1646620612949,120.4,82.508,82.423,50.88899261]
[1646620613150,120.4,82.506,82.423,50.88899261]
[1646620613350,120.4,82.504,82.423,50.88899261]
[1646620613750,120.4,82.502,82.423,50.88899261]
[1646620613953,120.4,82.5,82.423,50.88899261]
[1646620614151,185.96495997,82.499,82.423,50.88899261]
[1646620614355,6.063,82.498,82.43,18.1943]
[1646620615554,24.899,82.499,82.43,18.1943]
[1646620617455,6.063,82.519,82.431,25.58780101]
[1646620617657,120.4,82.525,82.431,25.58780101]
[1646620617855,120.4,82.525,82.43,32.1343]
[1646620618055,120.4,82.523,82.43,32.1343]
[1646620618254,120.4,82.519,82.43,18.1943]
[1646620618456,120.4,82.517,82.43,18.1943]
[1646620618657,120.4,82.515,82.43,18.1943]
[1646620618855,120.4,82.513,82.43,18.1943]
[1646620619155,6.062,82.519,82.43,18.1943]
[1646620620157,126.462,82.519,82.43,18.1943]
[1646620620357,6.062,82.519,82.43,18.1943]
[1646620623384,6.062,82.519,82.43,32.1343]
[1646620623985,53.49416479,82.52,82.43,32.1343]
[1646620624686,120.4,82.519,82.43,32.1343]
[1646620624887,122.00306995,82.519,82.424,23.8716]
[1646620625084,120.4,82.517,82.424,23.8716]
[1646620625284,1.60306995,82.509,82.424,23.8716]
[1646620625487,6.063,82.508,82.424,23.8716]
[1646620625687,28.58891125,82.507,82.424,23.8716]
[1646620625887,6.063,82.506,82.424,23.8716]
[1646620626991,6.063,82.506,82.43,18.1946]
[1646620629892,28.58891125,82.507,82.43,18.1946]
[1646620630293,6.062,82.506,82.43,18.1946]
[1646620631895,6.062,82.506,82.43,43.78240101]
[1646620632094,24.9326,82.507,82.431,0.6834375]
[1646620632396,6.062,82.516,82.45,18.1844]
[1646620632594,6.061,82.519,82.451,0.6834375]
[1646620632795,24.2832,82.526,82.452,51.48829882]
[1646620632796,52.34959179,82.524,82.452,51.48829882]
[1646620633098,6.061,82.523,82.452,51.48829882]
[1646620633495,6.061,82.523,82.453,0.50693499]
[1646620634094,6.061,82.523,82.46,18.187]
[1646620635703,24.2832,82.526,82.461,0.58670184]
[1646620635900,1.60306995,82.537,82.48,18.1824]
[1646620635901,6.061,82.536,82.48,18.1824]
[1646620636101,1.60306995,82.54,82.481,0.68804407]
[1646620636400,1.60306995,82.553,82.483,60.20592811]
[1646620636601,6.059,82.554,82.483,60.20592811]
[1646620636800,6.059,82.557,82.483,60.20592811]
[1646620637201,6.059,82.558,82.491,0.68804407]
[1646620637504,7.66206995,82.558,82.49,18.1806]
[1646620637705,40.60706409,82.557,82.49,18.1806]
[1646620637901,6.058,82.556,82.49,18.1806]
[1646620641206,123.23613526,82.555,82.483,59.51788404]
[1646620641405,120.4,82.553,82.483,59.51788404]
[1646620641604,120.4,82.551,82.483,59.51788404]
[1646620641807,120.4,82.549,82.483,59.51788404]
[1646620642005,30.7492,82.548,82.483,59.51788404]
[1646620644114,24.6902,82.548,82.483,59.51788404]
[1646620647312,6.059,82.547,82.483,59.51788404]